fUST/lending_fUST_20250130
["ID","MTS","AMOUNT","RATE_DAILY","PERIOD"]
[350952934,1738237846257,-1045.73,0.00019606,2]
[350952935,1738237846266,-500.0,0.00019606,2]
[350952936,1738237846275,-1125.89,0.00019606,2]
[350952937,1738237846285,-605.58472631,0.00019661,2]
[350952938,1738237846296,-358.3494704,0.00019726,2]
[350952939,1738237846307,-500.0,0.00019743,2]
[350952940,1738237846318,-2560.38,0.00019743,2]
[350952941,1738237846328,-1045.73,0.00019743,2]
[350952942,1738237846338,-500.0,0.00019743,2]
[350952943,1738237846347,-1125.89,0.00019743,2]
[350952944,1738237846356,-500.0,0.00019863,9]
[350952946,1738237846366,-500.0,0.0001988,2]
[350952947,1738237846376,-2560.38,0.0001988,2]
[350952948,1738237846386,-1045.73,0.0001988,2]
[350952949,1738237846396,-500.0,0.0001988,2]
[350952950,1738237846405,-1125.89,0.0001988,2]
[350952951,1738237846415,-154.122,0.0001995,2]
[350952952,1738237846424,-163.86759169,0.00019984,2]
[350952953,1738237846434,-1479.65,0.0001999,2]
[350952954,1738237846444,-160.0,0.0002,2]
[350952955,1738237846453,-150.0,0.0002,5]
[350952956,1738237846462,-500.0,0.0002,2]
[350952958,1738237846473,-151.4091651,0.00020004,2]
[350952959,1738237846483,-353.0,0.0002001,15]
[350952960,1738237846493,-184.59,0.00020017,2]
[350952961,1738237846503,-2560.38,0.00020017,2]
[350952962,1738237846513,-1045.73,0.00020017,2]
[350952964,1738237846522,-500.0,0.00020017,2]
[350952965,1738237846533,-1125.89,0.00020017,2]
[350952966,1738237846544,-2560.38,0.00020154,2]
[350952967,1738237846553,-1045.73,0.00020154,2]
[350952968,1738237846563,-500.0,0.00020154,2]
[350952969,1738237846573,-1125.89,0.00020154,2]
[350952970,1738237846582,-2560.38,0.00020291,2]
[350952971,1738237846592,-1045.73,0.00020291,2]
[350952972,1738237846601,-193.5,0.00020291,2]
[350952973,1738237846611,-1125.89,0.00020291,2]
[350952975,1738237846620,-500.0,0.00020301,2]
[350952976,1738237846630,-500.0,0.00020301,2]
[350952978,1738237846639,-500.0,0.00020301,2]
[350952980,1738237846649,-500.0,0.00020301,2]
[350952982,1738237846658,-500.0,0.00020301,2]
[350952983,1738237846668,-156.0,0.00020333,2]
[350952984,1738237846677,-156.0,0.00020333,2]
[350952985,1738237846686,-156.0,0.00020333,2]
[350952986,1738237846696,-156.01,0.00020333,2]
[350952987,1738237846706,-153.42,0.000204,31]
[350952989,1738237846716,-153.42,0.000204,31]
[350952990,1738237846725,-153.42,0.000204,31]
[350952992,1738237846735,-153.42,0.000204,31]
[350952994,1738237846745,-153.42,0.000204,31]
[350952995,1738237846755,-153.42,0.000204,31]
[350952996,1738237846764,-153.42,0.000204,31]
[350952997,1738237846773,-2560.38,0.00020428,2]
[350952998,1738237846782,-1045.73,0.00020428,2]
[350952999,1738237846792,-1125.89,0.00020428,2]
[350953000,1738237846801,-500.0,0.00020438,2]
[350953001,1738237846810,-500.0,0.00020438,2]
[350953002,1738237846820,-500.0,0.00020438,2]
[350953003,1738237846830,-500.0,0.00020438,2]
[350953004,1738237846839,-500.0,0.00020438,2]
[350953005,1738237846849,-222.818393,0.00020447,2]
[350953006,1738237846859,-500.0,0.00020547,11]
[350953007,1738237846868,-2560.38,0.00020565,2]
[350953008,1738237846882,-1045.73,0.00020565,2]
[350953009,1738237846891,-1125.89,0.00020565,2]
[350953010,1738237846901,-500.0,0.00020575,2]
[350953011,1738237846910,-500.0,0.00020575,2]
[350953012,1738237846921,-500.0,0.00020575,2]
[350953013,1738237846930,-500.0,0.00020575,2]
[350953014,1738237846939,-500.0,0.00020575,2]
[350953015,1738237846949,-2560.38,0.00020702,2]
[350953016,1738237846960,-1045.73,0.00020702,2]
[350953017,1738237846969,-1125.89,0.00020702,2]
[350953018,1738237846978,-500.0,0.00020712,2]
[350953019,1738237846987,-500.0,0.00020712,2]
[350953020,1738237846997,-500.0,0.00020712,2]
[350953021,1738237847006,-1000.0,0.000208,7]
[350953022,1738237847015,-1000.0,0.000208,10]
[350953023,1738237847025,-1000.0,0.000208,18]
[350953024,1738237847034,-632.96,0.000208,20]
[350953025,1738237847045,-2560.38,0.00020839,2]
[350953026,1738237847054,-1045.73,0.00020839,2]
[350953027,1738237847064,-1125.89,0.00020839,2]
[350953028,1738237847074,-500.0,0.00020849,2]
[350953029,1738237847083,-411.34454212,0.00020849,2]
[350953030,1738237847092,-517.66,0.00020899,2]
[350953031,1738237847102,-37027.60958867,0.000209,3]
[350953032,1738237847112,-160.0,0.000209,3]
[350953033,1738237847121,-151.52933526,0.000209,2]
[350953034,1738237847131,-500.0,0.00020973,2]
[350953035,1738237847140,-500.0,0.00020973,2]
[350953036,1738237847150,-2560.38,0.00020976,2]
[350953037,1738237847159,-1045.73,0.00020976,2]
[350953038,1738237847168,-1125.89,0.00020976,2]
[350953039,1738237847178,-500.0,0.00020986,2]
[350953040,1738237847187,-276.06473766,0.00020999,2]
[350953041,1738237847196,-500.0,0.00020999,2]
[350953042,1738237847206,-500.0,0.00020999,2]
[350953043,1738237847216,-471.2031802,0.00020999,2]
[350953044,1738237847227,-220.57351321,0.00020999,2]
[350953045,1738237847237,-13733.36922604,0.00021,5]
[350953046,1738237847246,-3904.77808027,0.00021,5]
[350953047,1738237847256,-390556.93337558,0.00021,30]
[350953048,1738237847274,-193943.96591329,0.00021,30]
[350953049,1738237847284,-4998.84196532,0.00021,2]
[350953050,1738237847293,-3000.0,0.00021,2]
[350953051,1738237847303,-153.118521,0.00021,2]
[350953052,1738237847312,-151.0,0.00021,2]
[350953053,1738237847322,-155.052708,0.00021,2]
[350953054,1738237847331,-4304.18,0.00021,2]
[350953055,1738237847340,-5137.91,0.00021,2]
[350953056,1738237847349,-300.16806063,0.00021,2]
[350953057,1738237847359,-182.915868,0.00021,2]
[350953058,1738237847368,-150.11,0.00021,14]
[350953059,1738237847377,-152.24605627,0.00021,14]
[350953060,1738237847386,-150.9580771,0.00021,14]
[350953061,1738237847395,-150.11,0.00021,14]
[350953062,1738237847405,-150.11,0.00021,14]
[350953063,1738237847414,-500.0,0.00021,14]
[350953064,1738237847424,-150.11,0.00021,2]
[350953065,1738237847433,-150.11,0.00021,14]
[350953066,1738237847443,-150.11,0.00021,14]
[350953067,1738237847453,-150.11,0.00021,14]
[350953068,1738237847462,-500.0,0.00021,2]
[350953069,1738237847471,-150.11,0.00021,14]
[350953070,1738237847481,-1000.0,0.00021,2]
[350953071,1738237847490,-3000.0,0.0002101,2]
[350953072,1738237847500,-3000.0,0.0002102,2]
[350953073,1738237847509,-154.42,0.0002102,2]
[350953074,1738237847518,-3000.0,0.0002103,2]
[350953075,1738237847528,-3000.0,0.0002104,2]
[350953076,1738237847538,-163.86759169,0.00021045,2]
[350953077,1738237847547,-3000.0,0.0002105,2]
[350953078,1738237847557,-3000.0,0.0002106,2]
[350953079,1738237847567,-3000.0,0.0002107,2]
[350953080,1738237847577,-1191.37054974,0.00021079,2]
[350953081,1738237847587,-3000.0,0.0002108,2]
[350953082,1738237847596,-3000.0,0.0002109,2]
[350953083,1738237847606,-3000.0,0.000211,2]
[350953084,1738237847615,-3000.0,0.0002111,2]
[350953085,1738237847625,-2560.39705584,0.00021113,2]
[350953086,1738237847635,-1045.86013629,0.00021113,2]
[350953087,1738237847644,-1126.1,0.00021113,2]
[350953088,1738237847653,-3000.0,0.0002112,2]
[350953089,1738237847663,-500.0,0.00021123,2]
[350953090,1738237847673,-395.0,0.00021124,2]
[350953091,1738237847682,-3000.0,0.0002113,2]
[350953092,1738237847691,-3000.0,0.0002114,2]
[350953093,1738237847701,-3000.0,0.0002115,2]
[350953094,1738237847820,-3000.0,0.0002116,2]
[350953095,1738237847831,-3000.0,0.0002117,2]
[350953096,1738237847840,-1191.37054974,0.00021179,2]
[350953097,1738237847849,-3000.0,0.0002118,2]
[350953098,1738237847859,-3000.0,0.0002119,2]
[350953099,1738237847869,-3000.0,0.000212,2]
[350953100,1738237847880,-3000.0,0.0002121,2]
[350953101,1738237847890,-2020.89,0.0002122,2]
[350953102,1738237847900,-3000.0,0.0002122,2]
[350953103,1738237847911,-151.0,0.0002122,2]
[350953104,1738237847925,-151.0,0.0002122,2]
[350953105,1738237847935,-151.0,0.0002122,2]
[350953106,1738237847944,-151.0,0.0002122,2]
[350953107,1738237847955,-151.0,0.0002122,2]
[350953108,1738237847965,-151.0,0.0002122,2]
[350953109,1738237847976,-151.0,0.0002122,2]
[350953110,1738237847985,-160.712905,0.0002122,2]
[350953111,1738237847995,-160.712905,0.0002122,2]
[350953112,1738237848005,-151.0,0.0002122,2]
[350953113,1738237848015,-162.26115,0.0002122,2]
[350953114,1738237848025,-162.26115,0.0002122,2]
[350953115,1738237848036,-151.0,0.0002122,2]
[350953116,1738237848047,-151.0,0.0002122,2]
[350953117,1738237848057,-3000.0,0.0002123,2]
[350953118,1738237848066,-500.0,0.00021232,13]
[350953119,1738237848076,-3000.0,0.0002124,2]
[350953120,1738237848086,-3000.0,0.0002125,2]
[350953121,1738237848095,-156.117108,0.0002125,2]
[350953122,1738237848104,-3000.0,0.0002126,2]
[350953123,1738237848114,-500.0,0.0002126,2]
[350953124,1738237848123,-3000.0,0.0002127,2]
[350953125,1738237848133,-150.23,0.00021274,14]
[350953126,1738237848143,-150.46169758,0.00021274,14]
[350953127,1738237848152,-150.11,0.00021274,14]
[350953128,1738237848166,-500.06,0.00021274,14]
[350953129,1738237848176,-150.23,0.00021274,14]
[350953130,1738237848185,-150.23,0.00021274,14]
[350953131,1738237848195,-150.11,0.00021274,14]
[350953132,1738237848205,-500.0,0.00021274,2]
[350953133,1738237848214,-199.92267506,0.00021274,14]
[350953134,1738237848223,-1191.37054974,0.00021279,2]
[350953135,1738237848233,-3000.0,0.0002128,2]
[350953136,1738237848243,-550.63971083,0.00021288,2]
[350953137,1738237848253,-3000.0,0.0002129,2]
[350953138,1738237848262,-3000.0,0.000213,2]
[350953139,1738237848272,-3000.0,0.0002131,2]
[350953140,1738237848282,-3000.0,0.0002132,2]
[350953141,1738237848291,-3000.0,0.0002133,2]
[350953142,1738237848301,-3000.0,0.0002134,2]
[350953143,1738237848311,-3000.0,0.0002135,2]
[350953144,1738237848321,-3000.0,0.0002136,2]
[350953145,1738237848331,-3000.0,0.0002137,2]
[350953146,1738237848340,-1191.37054974,0.00021379,2]
[350953147,1738237848352,-3000.0,0.0002138,2]
[350953148,1738237848362,-587.0,0.00021385,2]
[350953149,1738237848372,-3000.0,0.0002139,2]
[350953150,1738237848382,-557.45,0.00021396,2]
[350953151,1738237848391,-10000.0,0.00021398,3]
[350953152,1738237848401,-3000.0,0.000214,2]
[350953153,1738237848410,-3000.0,0.0002141,2]
[350953154,1738237848420,-151.0,0.0002141,2]
[350953155,1738237848429,-160.712905,0.0002141,2]
[350953156,1738237848439,-160.712905,0.0002141,2]
[350953157,1738237848449,-151.0,0.0002141,2]
[350953158,1738237848459,-151.0,0.0002141,2]
[350953159,1738237848469,-3000.0,0.0002142,2]
[350953160,1738237848479,-151.0,0.0002142,2]
[350953161,1738237848489,-151.0,0.0002142,2]
[350953162,1738237848499,-162.26115,0.0002142,2]
[350953163,1738237848509,-162.26115,0.0002142,2]
[350953164,1738237848519,-152.231364,0.00021422,2]
[350953165,1738237848528,-3000.0,0.0002143,2]
[350953166,1738237848538,-151.448518,0.0002143,2]
[350953167,1738237848548,-151.0,0.0002143,2]
[350953168,1738237848557,-151.0,0.0002143,2]
[350953169,1738237848567,-4630.547837,0.0002144,2]
[350953170,1738237848577,-1191.37054974,0.00021479,2]
[350953171,1738237848586,-4998.21774488,0.000215,2]
[350953172,1738237848596,-200.0,0.000215,3]
[350953173,1738237848606,-151.0,0.000215,2]
[350953174,1738237848616,-151.0,0.000215,2]
[350953175,1738237848625,-151.0,0.000215,2]
[350953176,1738237848635,-394.407232,0.000215,2]
[350953177,1738237848644,-151.0,0.000215,2]
[350953178,1738237848653,-259.279589,0.000215,2]
[350953179,1738237848663,-259.279589,0.000215,2]
[350953180,1738237848673,-151.0,0.000215,2]
[350953181,1738237848683,-1000.0,0.00021521,2]
[350953182,1738237848693,-239.81990394,0.00021521,2]
[350953183,1738237848703,-151.0,0.00021521,2]
[350953184,1738237848713,-150.11,0.00021548,14]
[350953185,1738237848723,-150.11,0.00021548,14]
[350953186,1738237848733,-742.4765995,0.00021548,2]
[350953187,1738237848743,-1191.37054974,0.00021579,2]
[350953188,1738237848753,-20942.0,0.000216,4]
[350953189,1738237848763,-151.0,0.000216,2]
[350953190,1738237848774,-151.0,0.000216,2]
[350953191,1738237848783,-180.876821,0.000216,2]
[350953192,1738237848792,-151.0,0.000216,2]
[350953193,1738237848802,-151.0,0.000216,2]
[350953194,1738237848811,-151.0,0.000216,2]
[350953195,1738237848821,-151.0,0.000216,2]
[350953196,1738237848830,-151.0,0.000216,2]
[350953197,1738237848839,-151.0,0.000216,2]
[350953198,1738237848849,-151.0,0.000216,2]
[350953199,1738237848858,-151.0,0.000216,2]
[350953200,1738237848867,-151.0,0.000216,2]
[350953201,1738237848879,-151.0,0.000216,2]
[350953202,1738237848888,-151.0,0.000216,2]
[350953203,1738237848898,-1191.37054974,0.00021679,2]
[350953204,1738237848908,-1191.37054974,0.00021779,2]
[350953205,1738237848918,-159.22811452,0.000218,2]
[350953206,1738237848927,-2130.94417945,0.0002182,2]
[350953207,1738237848937,-150.11,0.00021822,14]
[350953208,1738237848946,-183.26948737,0.00021822,14]
[350953209,1738237848956,-1191.37054974,0.00021879,2]
[350953210,1738237848966,-151.0,0.00021879,2]
[350953211,1738237848977,-151.0,0.00021879,2]
[350953212,1738237848986,-151.0,0.00021879,2]
[350953213,1738237848995,-5487.37475155,0.000219,10]
[350953214,1738237849004,-151.0,0.000219,3]
[350953215,1738237849013,-153.42,0.000219,31]
[350953216,1738237849023,-153.42,0.000219,31]
[350953217,1738237849031,-153.42,0.000219,31]
[350953218,1738237849040,-153.42,0.000219,31]
[350953219,1738237849050,-153.42,0.000219,31]
[350953220,1738237849059,-153.42,0.000219,31]
[350953221,1738237849068,-153.42,0.000219,31]
[350953222,1738237849077,-153.42,0.000219,31]
[350953223,1738237849086,-153.42,0.000219,31]
[350953224,1738237849095,-153.42,0.000219,31]
[350953225,1738237849105,-153.42,0.000219,31]
[350953226,1738237849114,-153.42,0.000219,31]
[350953227,1738237849123,-153.42,0.000219,31]
[350953228,1738237849133,-153.42,0.000219,31]
[350953229,1738237849142,-2098.94767569,0.000219,2]
[350953230,1738237849151,-501.5635461,0.00021917,2]
[350953231,1738237849161,-500.0,0.00021917,2]
[350953232,1738237849170,-500.0,0.00021917,2]
[350953233,1738237849179,-500.0,0.00021917,2]
[350953234,1738237849188,-500.0,0.00021917,2]
[350953235,1738237849198,-501.60748767,0.00021917,2]
[350953236,1738237849207,-600.0,0.00021917,2]
[350953237,1738237849216,-600.0,0.00021917,2]
[350953238,1738237849226,-300.0,0.00021917,2]
[350953239,1738237849235,-600.0,0.00021917,2]
[350953240,1738237849244,-600.0,0.00021917,2]
[350953241,1738237849253,-600.0,0.00021917,2]
[350953242,1738237849263,-600.0,0.00021917,2]
[350953243,1738237849272,-600.0,0.00021917,2]
[350953244,1738237849281,-385.58574436,0.00021917,2]
[350953245,1738237849291,-600.0,0.00021917,2]
[350953246,1738237849301,-404.46622256,0.00021917,2]
[350953247,1738237849310,-501.57914248,0.00021917,2]
[350953248,1738237849319,-616.62541249,0.00021917,2]
[350953249,1738237849329,-152.712604,0.00021917,2]
[350953250,1738237849338,-160.712905,0.00021917,2]
[350953251,1738237849347,-160.712905,0.00021917,2]
[350953252,1738237849356,-151.0,0.00021917,2]
[350953253,1738237849366,-162.26115,0.00021917,2]
[350953254,1738237849375,-162.26115,0.00021917,2]
[350953255,1738237849385,-151.0,0.00021917,2]
[350953256,1738237849393,-500.0,0.00021917,15]
[350953257,1738237849402,-503.05666677,0.00021917,2]
[350953258,1738237849411,-500.0,0.00021917,2]
[350953259,1738237849420,-500.0,0.00021917,2]
[350953260,1738237849430,-500.0,0.00021917,2]
[350953261,1738237849439,-500.0,0.00021917,2]
[350953262,1738237849448,-418.10192706,0.00021917,2]
[350953263,1738237849458,-1000.0,0.00021917,2]
[350953264,1738237849468,-1000.0,0.00021917,2]
[350953265,1738237849477,-1000.0,0.00021917,2]
[350953266,1738237849487,-1000.0,0.00021917,2]
[350953267,1738237849497,-1000.0,0.00021917,2]
[350953268,1738237849507,-1000.0,0.00021917,2]
[350953269,1738237849516,-1000.0,0.00021917,2]
[350953270,1738237849526,-1000.0,0.00021917,2]
[350953271,1738237849536,-1000.0,0.00021917,2]
[350953272,1738237849545,-500.0,0.00021917,7]
[350953273,1738237849555,-500.0,0.00021917,7]
[350953274,1738237849564,-500.0,0.00021917,7]
[350953275,1738237849574,-500.0,0.00021917,7]
[350953276,1738237849583,-500.0,0.00021917,7]
[350953277,1738237849593,-1000.0,0.00021917,2]
[350953278,1738237849602,-500.0,0.00021917,7]
[350953279,1738237849611,-1000.0,0.00021917,2]
[350953280,1738237849621,-500.0,0.00021917,7]
[350953281,1738237849631,-1000.0,0.00021917,2]
[350953282,1738237849640,-1000.0,0.00021917,2]
[350953283,1738237849649,-500.0,0.00021917,7]
[350953284,1738237849659,-1000.0,0.00021917,2]
[350953285,1738237849668,-500.0,0.00021917,7]
[350953286,1738237849678,-1000.0,0.00021917,2]
[350953287,1738237849687,-528.5,0.00021917,7]
[350953288,1738237849697,-1000.0,0.00021917,2]
[350953289,1738237849707,-1000.0,0.00021917,2]
[350953290,1738237849717,-655.71736865,0.00021917,2]
[350953291,1738237849726,-325.95485882,0.00021918,2]
[350953292,1738237849736,-151.0,0.00021918,7]
[350953293,1738237849745,-801.0,0.00021918,3]
[350953294,1738237849756,-1305.435,0.0002192,2]
[350953295,1738237849765,-1305.435,0.0002192,2]
[350953296,1738237849774,-1305.435,0.0002192,2]
[350953297,1738237849784,-1305.435,0.0002192,2]
[350953298,1738237849793,-1305.435,0.0002192,2]
[350953299,1738237849804,-1305.435,0.0002192,2]
[350953300,1738237849813,-1305.435,0.0002192,2]
[350953301,1738237849824,-1305.435,0.0002192,2]
[350953302,1738237849834,-1305.435,0.0002192,2]
[350953303,1738237849843,-1305.435,0.0002192,2]
[350953304,1738237849852,-1305.435,0.0002192,2]
[350953305,1738237849862,-1305.435,0.0002192,2]
[350953306,1738237849873,-1305.435,0.0002192,2]
[350953307,1738237849886,-1305.435,0.0002192,2]
[350953308,1738237849895,-1305.435,0.0002192,2]
[350953309,1738237849906,-1305.435,0.0002192,2]
[350953310,1738237849915,-1305.435,0.0002192,2]
[350953311,1738237849925,-1305.435,0.0002192,2]
[350953312,1738237849935,-1305.435,0.0002192,2]
[350953313,1738237849947,-1305.43,0.0002192,2]
[350953314,1738237849958,-3046.015,0.0002192,2]
[350953315,1738237849968,-3046.015,0.0002192,2]
[350953316,1738237849977,-3046.015,0.0002192,2]
[350953317,1738237849987,-3046.015,0.0002192,2]
[350953318,1738237849996,-3046.015,0.0002192,2]
[350953319,1738237850006,-3046.015,0.0002192,2]
[350953320,1738237850016,-3046.015,0.0002192,2]
[350953321,1738237850026,-3046.015,0.0002192,2]
[350953322,1738237850036,-3046.015,0.0002192,2]
[350953323,1738237850048,-3046.015,0.0002192,2]
[350953324,1738237850060,-3046.015,0.0002192,2]
[350953325,1738237850070,-3046.015,0.0002192,2]
[350953326,1738237850079,-3046.015,0.0002192,2]
[350953327,1738237850089,-3046.015,0.0002192,2]
[350953328,1738237850099,-3046.015,0.0002192,2]
[350953329,1738237850108,-3046.015,0.0002192,2]
[350953330,1738237850119,-3046.015,0.0002192,2]
[350953331,1738237850128,-3046.015,0.0002192,2]
[350953332,1738237850139,-3046.015,0.0002192,2]
[350953333,1738237850148,-3046.01,0.0002192,2]
[350953334,1738237850159,-263.62,0.0002192,2]
[350953335,1738237850169,-153.78361713,0.0002192,2]
[350953336,1738237850178,-153.78361713,0.0002192,2]
[350953337,1738237850187,-153.78361713,0.0002192,2]
[350953338,1738237850196,-153.78,0.0002192,2]
[350953339,1738237850205,-160.712905,0.0002192,7]
[350953340,1738237850215,-160.712905,0.0002192,7]
[350953341,1738237850225,-151.0,0.0002192,7]
[350953342,1738237850234,-162.26115,0.0002192,7]
[350953343,1738237850243,-162.26115,0.0002192,7]
[350953344,1738237850254,-151.0,0.0002192,7]
[350953345,1738237850264,-216.199138,0.0002192,7]
[350953346,1738237850273,-151.0,0.0002192,7]
[350953347,1738237850283,-215.284245,0.0002192,7]
[350953348,1738237850292,-394.407232,0.0002192,7]
[350953349,1738237850302,-151.0,0.0002192,7]
[350953350,1738237850312,-259.279589,0.0002192,7]
[350953351,1738237850321,-259.279589,0.0002192,7]
[350953352,1738237850331,-151.0,0.0002192,7]
[350953353,1738237850340,-151.0,0.0002192,7]
[350953354,1738237850349,-151.0,0.0002192,7]
[350953355,1738237850359,-151.0,0.0002192,7]
[350953356,1738237850368,-151.0,0.0002192,7]
[350953357,1738237850377,-151.0,0.0002192,7]
[350953358,1738237850386,-151.0,0.0002192,7]
[350953359,1738237850396,-151.0,0.0002192,7]
[350953360,1738237850406,-151.0,0.0002192,7]
[350953361,1738237850416,-151.0,0.0002192,7]
[350953362,1738237850425,-151.0,0.0002192,7]
[350953363,1738237850435,-151.0,0.0002192,7]
[350953364,1738237850444,-164.187723,0.0002192,7]
[350953365,1738237850545,-164.187723,0.0002192,7]
[350953366,1738237850555,-151.0,0.0002192,7]
[350953367,1738237850564,-152.041984,0.0002192,7]
[350953368,1738237850573,-151.0,0.0002192,7]
[350953369,1738237850583,-151.0,0.0002192,7]
[350953370,1738237850593,-151.0,0.0002192,7]
[350953371,1738237850603,-2098.94767563,0.00021923,2]
[350953372,1738237850612,-2098.94767563,0.00021946,2]
[350953373,1738237850622,-2098.94767563,0.00021969,2]
[350953374,1738237850631,-500.0,0.00021973,2]
[350953375,1738237850641,-500.0,0.00021973,2]
[350953376,1738237850650,-1191.37054974,0.00021979,2]
[350953377,1738237850660,-69588.27752065,0.0002199,7]
[350953378,1738237850669,-151.0,0.0002199,7]
[350953379,1738237850678,-151.0,0.0002199,7]
[350953380,1738237850687,-151.0,0.0002199,7]
[350953381,1738237850697,-151.0,0.0002199,7]
[350953382,1738237850706,-394.407232,0.0002199,7]
[350953383,1738237850715,-259.279589,0.0002199,7]
[350953384,1738237850724,-259.279589,0.0002199,7]
[350953385,1738237850733,-151.0,0.0002199,7]
[350953386,1738237850742,-151.0,0.0002199,7]
[350953387,1738237850752,-151.0,0.0002199,7]
[350953388,1738237850761,-151.0,0.0002199,7]
[350953389,1738237850770,-151.0,0.0002199,7]
[350953390,1738237850779,-151.0,0.0002199,7]
[350953391,1738237850788,-151.0,0.0002199,7]
[350953392,1738237850798,-151.0,0.0002199,7]
[350953393,1738237850807,-234.422606,0.0002199,7]
[350953394,1738237850816,-151.0,0.0002199,7]
[350953395,1738237850825,-151.0,0.0002199,7]
[350953396,1738237850834,-151.0,0.0002199,7]
[350953397,1738237850844,-164.187723,0.0002199,7]
[350953398,1738237850853,-164.187723,0.0002199,7]
[350953399,1738237850862,-151.0,0.0002199,7]
[350953400,1738237850871,-151.0,0.0002199,7]
[350953401,1738237850885,-151.0,0.0002199,7]
[350953402,1738237850894,-151.0,0.0002199,7]
[350953403,1738237850903,-2098.94767563,0.00021992,2]
[350953404,1738237850913,-2473.98981028,0.00022,30]
[350953405,1738237850922,-500.0,0.00022,10]
[350953406,1738237850931,-500.0,0.00022,7]
[350953407,1738237850940,-302.40601278,0.00022,2]
[350953408,1738237850950,-47415.32179317,0.00022,30]
[350953409,1738237850961,-2774.77834993,0.00022,30]
[350953410,1738237850970,-345.70915776,0.00022,2]
[350953411,1738237850979,-492.9830481,0.00022,2]
[350953412,1738237850988,-1285.9640367,0.00022,7]
[350953413,1738237850997,-1000.0,0.00022,2]
[350953414,1738237851006,-1000.0,0.00022,22]
[350953415,1738237851015,-254.34467625,0.00022,60]
[350953416,1738237851024,-4998.21774488,0.00022,2]
[350953417,1738237851033,-48131.62400984,0.00022,7]
[350953418,1738237851042,-31621.99920515,0.00022,2]
[350953419,1738237851051,-1455.71206175,0.00022,7]
[350953420,1738237851061,-162.40511586,0.00022,10]
[350953421,1738237851069,-39693.42178315,0.00022,7]
[350953422,1738237851080,-801.0,0.00022,2]
[350953423,1738237851089,-9310.18355774,0.00022,120]
[350953424,1738237851098,-160.0,0.00022,120]
[350953425,1738237851107,-19348.45550135,0.00022,3]
[350953426,1738237851116,-563.0,0.00022,2]
[350953427,1738237851125,-150.0,0.00022,2]
[350953428,1738237851134,-151.0,0.00022,7]
[350953429,1738237851143,-151.0,0.00022,7]
[350953430,1738237851153,-160.712905,0.00022,7]
[350953431,1738237851162,-160.712905,0.00022,7]
[350953432,1738237851171,-160.712905,0.00022,7]
[350953433,1738237851182,-160.712905,0.00022,7]
[350953434,1738237851192,-160.712905,0.00022,7]
[350953435,1738237851201,-160.712905,0.00022,7]
[350953436,1738237851210,-151.0,0.00022,7]
[350953437,1738237851220,-151.0,0.00022,7]
[350953438,1738237851229,-162.26115,0.00022,7]
[350953439,1738237851238,-162.26115,0.00022,7]
[350953440,1738237851247,-162.26115,0.00022,7]
[350953441,1738237851256,-162.26115,0.00022,7]
[350953442,1738237851265,-162.26115,0.00022,7]
[350953443,1738237851274,-162.26115,0.00022,7]